fUST/lending_fUST_20251231
["ID","MTS","AMOUNT","RATE_DAILY","PERIOD"]
[400159867,1767160261417,-156.190121,0.00036,28]
[400159868,1767160261426,-156.190121,0.00036,28]
[400159869,1767160261436,-151.0,0.00036,31]
[400159870,1767160261445,-193.357014,0.00036,31]
[400159871,1767160261455,-151.0,0.00036,31]
[400159872,1767160261464,-193.357014,0.00036,31]
[400159873,1767160261473,-193.357014,0.00036,31]
[400159874,1767160261483,-193.357014,0.00036,31]
[400159875,1767160261492,-151.0,0.00036,31]
[400159876,1767160261503,-600.0,0.00036019,2]
[400159877,1767160261512,-153.0,0.00036047,30]
[400159878,1767160261522,-153.0,0.00036047,30]
[400159879,1767160261532,-153.0,0.00036047,30]
[400159880,1767160261541,-153.0,0.00036047,30]
[400159881,1767160261551,-153.0,0.00036047,30]
[400159882,1767160261560,-153.0,0.00036047,30]
[400159883,1767160261570,-153.0,0.00036047,30]
[400159884,1767160261579,-153.0,0.00036047,30]
[400159885,1767160261589,-153.0,0.00036047,30]
[400159886,1767160261598,-154.6016492,0.00036047,30]
[400159887,1767160261608,-153.0,0.00036047,30]
[400159888,1767160261617,-216.07836347,0.00036158,2]
[400159889,1767160261627,-169.32246815,0.00036219,30]
[400159890,1767160261637,-167.0,0.00036247,30]
[400159891,1767160261646,-216.07836347,0.00036258,2]
[400159892,1767160261654,-216.185,0.0003626,44]
[400159893,1767160261664,-600.0,0.0003639,2]
[400159894,1767160261674,-151.0,0.00036438,31]
[400159895,1767160261683,-151.0,0.00036438,31]
[400159896,1767160261692,-151.0,0.00036438,31]
[400159897,1767160261702,-956.2,0.00036438,40]
[400159898,1767160261712,-200.0,0.0003649,120]
[400159899,1767160261720,-155.15468496,0.000365,120]
[400159900,1767160261730,-184.1677213,0.00036548,30]
[400159901,1767160261740,-184.1677213,0.00036548,30]
[400159902,1767160261749,-184.1677213,0.00036548,30]
[400159903,1767160261758,-184.1677213,0.00036548,30]
[400159904,1767160261767,-184.1677213,0.00036548,30]
[400159905,1767160261776,-202.21692804,0.00036561,8]
[400159906,1767160261788,-202.21692799,0.00036561,8]
[400159907,1767160261798,-202.21692799,0.00036561,8]
[400159908,1767160261808,-202.21692799,0.00036561,8]
[400159909,1767160261820,-202.21692799,0.00036561,8]
[400159910,1767160261830,-202.21692799,0.00036561,8]
[400159911,1767160261840,-202.21692799,0.00036561,8]
[400159912,1767160261849,-202.21692799,0.00036561,8]
[400159913,1767160261860,-202.21692799,0.00036561,8]
[400159914,1767160261870,-202.21692799,0.00036561,8]
[400159915,1767160261879,-202.21692799,0.00036561,8]
[400159916,1767160261888,-202.21692799,0.00036561,8]
[400159917,1767160261898,-202.21692799,0.00036561,8]
[400159918,1767160261908,-152.63705,0.00036588,31]
[400159919,1767160261918,-151.0,0.00036588,31]
[400159920,1767160261927,-151.0,0.00036588,31]
[400159921,1767160261937,-151.0,0.00036588,31]
[400159922,1767160261946,-151.0,0.00036588,31]
[400159923,1767160261956,-151.0,0.00036588,31]
[400159924,1767160261966,-151.0,0.00036588,31]
[400159925,1767160261976,-151.0,0.00036588,31]
[400159926,1767160261985,-151.0,0.00036588,31]
[400159927,1767160261994,-291.1968236,0.00036588,31]
[400159928,1767160262004,-151.0,0.00036588,31]
[400159929,1767160262013,-151.0,0.00036588,31]
[400159930,1767160262023,-169.32246815,0.00036603,30]
[400159931,1767160262032,-200.0,0.00036607,120]
[400159932,1767160262043,-600.0,0.00036762,2]
[400159933,1767160262052,-8002.04353788,0.00036788,30]
[400159937,1767160262666,-10196.19600505,0.00013696,2]
[400159938,1767160262676,-254.02465024,0.00013699,2]
[400159939,1767160262685,-500.0,0.00013699,2]
[400159940,1767160262694,-525.82485317,0.00013699,2]
[400159941,1767160262703,-500.0,0.00013699,2]
[400159942,1767160262712,-1000.0,0.00014247,2]
[400159943,1767160262722,-941.53284855,0.00014247,2]
[400159944,1767160262731,-1500.0,0.00014795,2]
[400159945,1767160262740,-1207.59767903,0.00015342,2]
[400159946,1767160262750,-151.0,0.00018049,2]
[400159947,1767160262759,-2487.15318209,0.00018049,2]
[400159949,1767160262768,-151.0,0.00018049,2]
[400159950,1767160262778,-151.0,0.00018049,2]
[400159951,1767160262787,-151.0,0.00018049,2]
[400159952,1767160262795,-151.0,0.00018049,2]
[400159953,1767160262804,-151.0,0.00018049,2]
[400159954,1767160262813,-2579.17784983,0.00018597,2]
[400159955,1767160262823,-2320.69018031,0.00019145,2]
[400159956,1767160262873,-500.0,0.0001655,3]
[400159970,1767160334692,192.4131998,0.00011114,2]
[400159971,1767160336521,769.65279921,0.00011663,2]
[400159972,1767160366784,-300.0,0.00011816,2]
[400159973,1767160366816,-300.0,0.00012052,2]
[400159974,1767160366847,-300.0,0.00012052,2]
[400159975,1767160366881,-300.0,0.00012052,2]
[400159976,1767160366920,-300.0,0.00012052,2]
[400159977,1767160366953,-300.0,0.00012052,2]
[400159978,1767160366984,-300.0,0.00012052,2]
[400159979,1767160367019,-300.0,0.00012052,2]
[400159980,1767160367049,-300.0,0.00012052,2]
[400159981,1767160367079,-300.0,0.00012052,2]
[400159982,1767160367110,-300.0,0.00012052,2]
[400159983,1767160367142,-300.0,0.00012052,2]
[400159984,1767160367173,-300.0,0.00012052,2]
[400159985,1767160367204,-300.0,0.00012052,2]
[400159986,1767160367240,-300.0,0.00012052,2]
[400159987,1767160367272,-300.0,0.00012052,2]
[400159988,1767160367598,-600.0,0.00012052,2]
[400159989,1767160382762,300.0,0.00012051,2]
[400159990,1767160385661,8500.01,0.00011718,2]
[400159991,1767160385687,10000.01,0.00011718,2]
[400159992,1767160385715,10000.01,0.00011718,2]
[400159993,1767160385741,10000.01,0.00011718,2]
[400159995,1767160460481,5000.0,0.00011718,2]
[400159996,1767160474017,165.91374736,0.00011717,2]
[400159997,1767160474058,500.0,0.00011717,2]
[400159998,1767160474113,500.0,0.00011717,2]
[400159999,1767160474180,500.0,0.00011717,2]
[400160000,1767160474219,500.0,0.00011717,2]
[400160001,1767160474292,500.0,0.00011717,2]
[400160002,1767160474340,500.0,0.00011717,2]
[400160003,1767160474383,500.0,0.00011717,2]
[400160004,1767160474420,500.0,0.00011717,2]
[400160005,1767160474463,500.0,0.00011717,2]
[400160006,1767160474498,334.09625264,0.00011717,2]
[400160007,1767160474533,66.05705867,0.00011717,2]
[400160008,1767160474691,500.0,0.00011717,2]
[400160009,1767160474733,500.0,0.00011717,2]
[400160010,1767160474769,500.0,0.00011717,2]
[400160011,1767160474809,500.0,0.00011717,2]
[400160012,1767160474847,500.0,0.00011717,2]
[400160013,1767160474885,500.0,0.00011717,2]
[400160014,1767160474925,500.0,0.00011717,2]
[400160015,1767160474980,500.0,0.00011717,2]
[400160016,1767160475030,500.0,0.00011717,2]
[400160017,1767160475066,500.0,0.00011717,2]
[400160018,1767160475199,500.0,0.00011717,2]
[400160019,1767160475235,500.0,0.00011717,2]
[400160020,1767160477589,590.86995952,0.00011717,2]
[400160021,1767160477626,552.54939686,0.00011717,2]
[400160022,1767160477667,500.0,0.00011717,2]
[400160023,1767160477720,499.4435521,0.00011717,2]
[400160024,1767160477751,500.0,0.00011717,2]
[400160025,1767160477813,500.0,0.00011717,2]
[400160026,1767160483308,791.09003285,0.00011718,2]
[400160027,1767160483334,4208.90996715,0.00011718,2]
[400160028,1767160492204,500.0,0.00011717,2]
[400160029,1767160492236,500.0,0.00011717,2]
[400160030,1767160492267,500.0,0.00011717,2]
[400160031,1767160492297,500.0,0.00011717,2]
[400160032,1767160492349,500.0,0.00011717,2]
[400160033,1767160492382,500.0,0.00011717,2]
[400160034,1767160492614,500.0,0.00011717,2]
[400160035,1767160492649,500.0,0.00011717,2]
[400160036,1767160492738,500.0,0.00011717,2]
[400160037,1767160492831,500.0,0.00011717,2]
[400160038,1767160492860,213.19142277,0.00011717,2]
[400160039,1767160493080,500.0,0.00011717,2]
[400160040,1767160495578,-6799.86668869,0.00011718,2]
[400160041,1767160500571,-10000.01,0.00011718,2]
[400160042,1767160500719,-10000.01,0.00011718,2]
[400160043,1767160500820,-10000.01,0.00011718,2]
[400160044,1767160500930,-10000.01,0.00011718,2]
[400160045,1767160501043,-10000.01,0.00011718,2]
[400160046,1767160501175,-10000.01,0.00011718,2]
[400160047,1767160501318,-10000.01,0.00011718,2]
[400160048,1767160501489,-10000.01,0.00011718,2]
[400160049,1767160501646,-10000.01,0.00011718,2]
[400160050,1767160503533,-300.0,0.00011717,2]
[400160051,1767160503580,-9400.01,0.00011718,2]
[400160052,1767160518745,-208.92530603,0.00011601,2]
[400160053,1767160523670,-245.65366202,0.00011601,2]
[400160054,1767160525726,-732.43169808,0.00011601,2]
[400160055,1767160527273,-157.8114192,0.00011601,2]
[400160056,1767160527691,-3655.17791467,0.00011601,2]
[400160057,1767160527722,-1200.0,0.00011717,2]
[400160058,1767160551736,289.65417066,0.00011718,2]
[400160059,1767160551762,4710.34582934,0.00011718,2]
[400160060,1767160562450,300.0,0.00011717,2]
[400160061,1767160573108,500.0,0.00011717,2]
[400160062,1767160573139,199.34374529,0.00011717,2]
[400160063,1767160573177,156.58442358,0.00011717,2]
[400160064,1767160573207,326.2516625,0.00011717,2]
[400160065,1767160573238,500.0,0.00011717,2]
[400160066,1767160573437,500.0,0.00011717,2]
[400160067,1767160573471,518.53506659,0.00011717,2]
[400160068,1767160573629,500.0,0.00011717,2]
[400160069,1767160573772,500.0,0.00011717,2]
[400160070,1767160573972,500.0,0.00011717,2]
[400160071,1767160574063,500.0,0.00011717,2]
[400160072,1767160574268,288.9492727,0.00011717,2]
[400160073,1767160574291,211.0507273,0.00011717,2]
[400160074,1767160574538,500.0,0.00011717,2]
[400160075,1767160574689,500.0,0.00011717,2]
[400160076,1767160574859,500.0,0.00011717,2]
[400160077,1767160574991,320.03034015,0.00011717,2]
[400160078,1767160575177,500.0,0.00011717,2]
[400160079,1767160575284,5000.0,0.00011718,2]
[400160080,1767160575538,500.0,0.00011717,2]
[400160081,1767160575845,500.0,0.00011717,2]
[400160082,1767160576272,500.0,0.00011717,2]
[400160083,1767160576591,500.0,0.00011717,2]
[400160084,1767160576942,500.0,0.00011717,2]
[400160085,1767160577274,500.0,0.00011717,2]
[400160086,1767160577597,500.0,0.00011717,2]
[400160087,1767160577896,500.0,0.00011717,2]
[400160088,1767160578221,500.0,0.00011717,2]
[400160089,1767160578541,500.0,0.00011717,2]
[400160090,1767160578868,500.0,0.00011717,2]
[400160091,1767160579149,500.0,0.00011717,2]
[400160092,1767160579191,500.0,0.00011717,2]
[400160093,1767160579227,500.0,0.00011717,2]
[400160094,1767160579261,500.0,0.00011717,2]
[400160095,1767160579302,500.0,0.00011717,2]
[400160096,1767160579332,500.0,0.00011717,2]
[400160097,1767160579380,500.0,0.00011717,2]
[400160098,1767160579412,500.0,0.00011717,2]
[400160099,1767160579458,500.0,0.00011717,2]
[400160100,1767160579524,410.9094715,0.00011717,2]
[400160101,1767160579568,500.0,0.00011717,2]
[400160102,1767160579637,89.1005285,0.00011717,2]
[400160103,1767160579673,410.8994715,0.00011717,2]
[400160104,1767160579705,500.0,0.00011717,2]
[400160105,1767160579745,500.0,0.00011717,2]
[400160106,1767160579815,500.0,0.00011717,2]
[400160107,1767160585736,500.0,0.00011717,2]
[400160108,1767160585767,500.0,0.00011717,2]
[400160109,1767160585801,500.0,0.00011717,2]
[400160110,1767160585835,191.65037495,0.00011717,2]
[400160111,1767160585874,500.0,0.00011717,2]
[400160112,1767160585915,500.0,0.00011717,2]
[400160113,1767160585956,293.11654013,0.00011717,2]
[400160114,1767160598157,5000.0,0.00011718,2]
[400160115,1767160600818,104.34361342,0.00011717,2]
[400160116,1767160600846,395.65638658,0.00011717,2]
[400160117,1767160600878,500.0,0.00011717,2]
[400160118,1767160600915,500.0,0.00011717,2]
[400160119,1767160600947,500.0,0.00011717,2]
[400160120,1767160600978,500.0,0.00011717,2]
[400160121,1767160601010,500.0,0.00011717,2]
[400160122,1767160601044,500.0,0.00011717,2]
[400160123,1767160601076,500.0,0.00011717,2]
[400160124,1767160601112,500.0,0.00011717,2]
[400160125,1767160614596,3374.67480924,0.00011718,2]
[400160126,1767160621944,-3409.65846403,0.00011718,2]
[400160127,1767160621985,-10000.01,0.00011718,2]
[400160128,1767160622001,-10000.01,0.00011718,2]
[400160129,1767160622030,-10000.01,0.00011718,2]
[400160130,1767160622151,-10000.01,0.00011718,2]
[400160131,1767160622277,-10000.01,0.00011718,2]
[400160132,1767160622373,300.0,0.00011717,2]
[400160133,1767160622550,1929.67880418,0.00011718,2]
[400160134,1767160622577,3070.32119582,0.00011718,2]
[400160135,1767160622743,300.0,0.00011717,2]
[400160136,1767160623884,-4400.01,0.00011718,2]
[400160137,1767160623968,-10000.01,0.00011718,2]
[400160138,1767160624108,-10000.01,0.00011718,2]
[400160139,1767160627027,-10000.01,0.00011718,2]
[400160140,1767160627145,-10000.01,0.00011718,2]
[400160141,1767160627276,-10000.01,0.00011718,2]
[400160142,1767160627403,-10000.01,0.00011718,2]
[400160143,1767160627523,-10000.01,0.00011718,2]
[400160144,1767160627683,-10000.01,0.00011718,2]
[400160145,1767160627799,-10000.01,0.00011718,2]
[400160146,1767160631668,235.0,0.00028767,120]
[400160147,1767160638784,-155.43,0.0001,2]
[400160148,1767160638806,-81.87351651,0.000102,2]
[400160151,1767160642947,-73.55648349,0.000102,2]
[400160152,1767160642970,-129.22123902,0.000104,2]
[400160153,1767160645082,-26.20876098,0.000104,2]
[400160154,1767160645117,-155.43,0.000106,2]
[400160155,1767160645150,-155.43,0.000108,2]
[400160156,1767160645182,-212.79758222,0.00011208,2]
[400160157,1767160645215,-448.1582616,0.00011685,2]
[400160158,1767160645250,-500.0,0.00011717,2]
[400160159,1767160645408,155.43,0.00011,2]
[400160160,1767160646276,5000.0,0.00010296,2]
[400160161,1767160648098,154.28699706,0.00011717,2]
[400160162,1767160662778,1694.24379334,0.00011718,2]
[400160163,1767160662802,1826.66620666,0.00011718,2]
[400160164,1767160664117,500.0,0.00011717,2]
[400160165,1767160664171,500.0,0.00011717,2]
[400160166,1767160664221,500.0,0.00011717,2]
[400160167,1767160664284,500.0,0.00011717,2]
[400160168,1767160664332,525.86445502,0.00011717,2]
[400160169,1767160670643,5000.0,0.00011718,2]
[400160170,1767160682548,300.0,0.00011717,2]
[400160171,1767160692541,347.47933832,0.00011717,2]
[400160172,1767160692568,852.52066168,0.00011717,2]
[400160173,1767160695010,5000.0,0.00011718,2]
[400160174,1767160705301,291.3799864,0.00011178,2]
[400160175,1767160720076,3856.10935192,0.00011718,2]
[400160176,1767160720103,1143.89064808,0.00011718,2]
[400160177,1767160742993,300.0,0.00011717,2]
[400160178,1767160744670,5000.0,0.00011718,2]
[400160179,1767160767492,3556.11935192,0.00011718,2]
[400160180,1767160767524,1443.88064808,0.00011718,2]
[400160181,1767160791568,5000.0,0.00011718,2]
[400160182,1767160801659,300.0,0.00011717,2]
[400160183,1767160802444,300.0,0.00011717,2]
[400160184,1767160802894,300.0,0.00011717,2]
[400160185,1767160804551,300.0,0.00011717,2]
[400160186,1767160804757,585.0,0.00011718,2]
[400160187,1767160804974,152.24,0.0001,2]
[400160188,1767160807430,152.24,0.000102,2]
[400160189,1767160807538,184.01414135,0.00011718,2]
[400160190,1767160808784,300.0,0.00011717,2]
[400160191,1767160811426,982.63521057,0.00011717,2]
[400160192,1767160811450,217.36478943,0.00011717,2]
[400160193,1767160815506,5000.0,0.00011718,2]
[400160194,1767160827286,500.0,0.00011717,2]
[400160195,1767160827320,500.0,0.00011717,2]
[400160196,1767160827355,500.0,0.00011717,2]
[400160197,1767160827400,500.0,0.00011717,2]
[400160198,1767160827442,500.0,0.00011717,2]
[400160199,1767160827497,500.0,0.00011717,2]
[400160200,1767160827539,500.0,0.00011717,2]
[400160201,1767160827572,500.0,0.00011717,2]
[400160202,1767160827609,500.0,0.00011717,2]
[400160203,1767160827647,282.64521057,0.00011717,2]
[400160204,1767160827676,217.35478943,0.00011717,2]
[400160205,1767160827710,500.0,0.00011717,2]
[400160206,1767160827744,500.0,0.00011717,2]
[400160207,1767160827795,189.47218507,0.00011717,2]
[400160208,1767160827837,500.0,0.00011717,2]
[400160209,1767160827888,500.0,0.00011717,2]
[400160210,1767160827928,500.0,0.00011717,2]
[400160211,1767160827963,500.0,0.00011717,2]
[400160212,1767160828001,500.0,0.00011717,2]
[400160213,1767160833971,151.0,0.00011718,2]
[400160215,1767160834604,151.0,0.00011718,2]
[400160217,1767160835213,151.0,0.00011718,2]
[400160218,1767160835849,151.0,0.00011718,2]
[400160219,1767160836569,151.0,0.00011718,2]
[400160220,1767160837064,151.0,0.00011718,2]
[400160222,1767160838181,151.0,0.00011718,2]
[400160223,1767160838840,151.0,0.00011718,2]
[400160224,1767160838974,4885.1830255,0.00011718,2]
[400160225,1767160839001,114.8169745,0.00011718,2]
[400160227,1767160839508,151.0,0.00011718,2]
[400160228,1767160840157,151.0,0.00011718,2]
[400160229,1767160840766,242.32257062,0.00011718,2]
[400160232,1767160849436,186.85163856,0.00011652,2]
[400160236,1767160862341,300.0,0.00011717,2]
[400160237,1767160862378,5000.0,0.00011718,2]
[400160238,1767160862620,500.0,0.00011717,2]
[400160239,1767160862687,500.0,0.00011717,2]
[400160240,1767160862727,500.0,0.00011717,2]
[400160242,1767160862780,500.0,0.00011717,2]
[400160243,1767160862812,500.0,0.00011717,2]
[400160244,1767160862845,500.0,0.00011717,2]
[400160245,1767160862900,401.26950661,0.00011717,2]
[400160248,1767160870136,250.93003077,0.00011717,2]
[400160249,1767160873877,201.81927894,0.00011155,2]
[400160250,1767160873903,4244.82944666,0.00011155,2]
[400160251,1767160878462,280.65160611,0.00011717,2]
[400160252,1767160883338,573.47755831,0.00011717,2]
[400160253,1767160883510,500.0,0.00011717,2]
[400160254,1767160884884,500.0,0.00011717,2]
[400160255,1767160884997,552.84102442,0.00011717,2]
[400160256,1767160885431,3348.2103645,0.00011718,2]
[400160257,1767160885460,1651.7896355,0.00011718,2]
[400160260,1767160900915,1000.0,0.00011718,2]
[400160261,1767160903011,304.896,0.00011484,2]
[400160262,1767160903053,184.00470644,0.00011484,2]
[400160263,1767160903280,1000.0,0.00011718,2]
[400160264,1767160904686,1000.0,0.00011718,2]
[400160265,1767160906648,1000.0,0.00011718,2]
[400160266,1767160909063,1000.0,0.00011718,2]
[400160267,1767160909321,2859.31965806,0.00011718,2]
[400160268,1767160909348,2140.68034194,0.00011718,2]
[400160269,1767160911077,1000.0,0.00011718,2]
[400160270,1767160912671,1000.0,0.00011718,2]
[400160271,1767160914648,1000.0,0.00011718,2]
[400160272,1767160916391,1000.0,0.00011718,2]
[400160273,1767160917688,1000.0,0.00011718,2]
[400160274,1767160919217,1000.0,0.00011718,2]
[400160275,1767160920705,1009.65882188,0.00011718,2]
[400160276,1767160922421,300.0,0.00011717,2]
[400160277,1767160927478,269.91084922,0.00011652,2]
[400160278,1767160932726,279.75998696,0.00011718,2]
[400160279,1767160932753,4720.24001304,0.00011718,2]
[400160280,1767160956240,5000.0,0.00011718,2]
[400160281,1767160979210,279.76998696,0.00011718,2]
[400160282,1767160979237,4720.23001304,0.00011718,2]
[400160283,1767160982828,300.0,0.00011717,2]
[400160284,1767160983053,300.0,0.00011717,2]
[400160285,1767160984774,585.3881658,0.00011652,2]
[400160286,1767160988786,-7090.44103076,0.00011718,2]
[400160287,1767160988920,-10000.01,0.00011718,2]
[400160288,1767160989044,-10000.01,0.00011718,2]
[400160289,1767160989189,-10000.01,0.00011718,2]
[400160290,1767160991330,-10000.01,0.00011718,2]
[400160291,1767160991432,-10000.01,0.00011718,2]
[400160292,1767160991567,-10000.01,0.00011718,2]
[400160293,1767160991700,-10000.01,0.00011718,2]
[400160294,1767160994244,-1200.0,0.00011717,2]
[400160295,1767160994297,-7600.01,0.00011718,2]
[400160296,1767160994371,-10000.01,0.00011718,2]
[400160297,1767160994485,-10000.01,0.00011718,2]
[400160298,1767161013720,-411.36558161,0.00011601,2]
[400160299,1767161016545,-200.52,0.00011601,2]
[400160300,1767161039935,10000.0,0.00011035,2]
[400160301,1767161062735,0.01,0.00011581,2]
[400160302,1767161062758,1479.08,0.00011581,2]
[400160303,1767161105873,156.0,0.000287,120]
[400160304,1767161134068,150.0,0.00028767,120]
[400160305,1767161164939,225.95,0.0001,2]
[400160306,1767161205601,5000.0,0.00011581,2]
[400160307,1767161225144,-342.34607582,0.00011659,2]
[400160308,1767161225165,-347.95661716,0.00011715,2]
[400160309,1767161228513,3294.98,0.00011581,2]
[400160310,1767161228539,1705.02,0.00011581,2]
[400160311,1767161254533,275.0,0.00028767,120]
[400160312,1767161280669,393.36,8.991e-05,2]
[400160313,1767161281174,393.36,8.991e-05,2]
[400160314,1767161360071,-5000.0,0.00011598,2]
[400160315,1767161360095,-300.0,0.00011714,2]
[400160316,1767161360116,-300.0,0.00011714,2]
[400160317,1767161360138,-852.04338284,0.00011715,2]
[400160318,1767161360158,-1200.0,0.00011715,2]
[400160319,1767161360180,-31235.12802181,0.00011716,2]
[400160338,1767161432174,-300.0,0.00011598,2]
[400160339,1767161432183,-352.1498083,0.00011598,2]
[400160340,1767161432195,-847.8501917,0.00011598,2]
[400160341,1767161432204,-948.17918649,0.00011599,2]
[400160371,1767161438272,-4051.82081351,0.00011599,2]
[400160373,1767161438282,-583.0,0.00011599,2]
[400160375,1767161438292,-175.65102154,0.00011616,2]
[400160377,1767161438301,-500.0,0.00011616,2]
[400160379,1767161438311,-500.0,0.00011616,2]
[400160381,1767161438320,-500.0,0.00011616,2]
[400160382,1767161438330,-236.9887171,0.00011616,2]
[400160384,1767161438339,-500.0,0.00011616,2]
[400160386,1767161438348,-500.0,0.00011616,2]
[400160388,1767161438358,-500.0,0.00011616,2]
[400160389,1767161438367,-500.0,0.00011616,2]
[400160391,1767161438376,-500.0,0.00011616,2]
[400160393,1767161438386,-500.0,0.00011616,2]
[400160395,1767161438395,-500.0,0.00011616,2]
[400160396,1767161438405,-500.0,0.00011616,2]
[400160397,1767161438418,-391.68424295,0.00011616,2]
[400160399,1767161438427,-500.0,0.00011616,2]
[400160400,1767161438436,-500.0,0.00011616,2]
[400160401,1767161438445,-500.0,0.00011616,2]
[400160402,1767161438455,-500.0,0.00011616,2]
[400160403,1767161438464,-500.0,0.00011616,2]
[400160404,1767161438474,-500.0,0.00011616,2]
[400160405,1767161438483,-500.0,0.00011616,2]
[400160406,1767161438493,-500.0,0.00011616,2]
[400160407,1767161438503,-500.0,0.00011616,2]
[400160408,1767161438512,-500.0,0.00011616,2]
[400160409,1767161438522,-500.0,0.00011616,2]
[400160410,1767161438531,-489.62307892,0.00011616,2]
[400160411,1767161438540,-500.0,0.00011616,2]
[400160412,1767161438549,-500.0,0.00011616,2]
[400160413,1767161438563,-500.0,0.00011616,2]
[400160414,1767161438572,-500.0,0.00011616,2]
[400160415,1767161438582,-500.0,0.00011616,2]
[400160416,1767161438591,-455.0,0.00011616,2]
[400160417,1767161438601,-500.0,0.00011616,2]
[400160418,1767161438610,-500.0,0.00011616,2]
[400160419,1767161438619,-500.0,0.00011616,2]
[400160420,1767161438631,-500.0,0.00011616,2]
[400160421,1767161438640,-414.552233,0.00011616,2]
[400160422,1767161438650,-500.0,0.00011616,2]
[400160423,1767161438660,-510.57393726,0.00011616,2]
[400160424,1767161438669,-500.0,0.00011616,2]
[400160425,1767161438679,-500.0,0.00011616,2]
[400160426,1767161438688,-500.0,0.00011616,2]
[400160427,1767161438698,-450.53374097,0.00011616,2]
[400160428,1767161438707,-500.0,0.00011616,2]
[400160429,1767161438717,-500.0,0.00011616,2]
[400160430,1767161438727,-500.0,0.00011616,2]
[400160431,1767161438736,-500.0,0.00011616,2]
[400160432,1767161438745,-500.0,0.00011616,2]
[400160433,1767161438755,-500.0,0.00011616,2]
[400160434,1767161438764,-500.0,0.00011616,2]
[400160435,1767161438773,-500.0,0.00011616,2]
[400160436,1767161438783,-500.0,0.00011616,2]
[400160437,1767161438792,-500.0,0.00011616,2]
[400160438,1767161438801,-500.0,0.00011616,2]
[400160439,1767161438810,-500.0,0.00011616,2]
[400160440,1767161438820,-500.0,0.00011616,2]
[400160441,1767161438829,-500.0,0.00011616,2]
[400160442,1767161438838,-500.0,0.00011616,2]
[400160443,1767161438848,-500.0,0.00011616,2]
[400160444,1767161438858,-500.0,0.00011616,2]
[400160445,1767161438868,-500.0,0.00011616,2]
[400160446,1767161438878,-500.0,0.00011616,2]
[400160447,1767161438887,-500.0,0.00011616,2]
[400160448,1767161438897,-500.0,0.00011616,2]
[400160449,1767161438907,-500.0,0.00011616,2]
[400160450,1767161438916,-500.0,0.00011616,2]
[400160451,1767161438926,-500.0,0.00011616,2]
[400160452,1767161438935,-500.0,0.00011616,2]
[400160453,1767161438945,-300.0,0.00011616,2]
[400160454,1767161438955,-300.0,0.00011616,2]
[400160455,1767161438964,-300.0,0.00011616,2]
[400160456,1767161438974,-1000000.0,0.00011617,2]
[400160457,1767161438983,-335.4991543,0.00011657,2]
[400160458,1767161438992,-18764.87197819,0.00011716,2]
[400160459,1767161439002,-500.0,0.00011717,2]